[Event "Titled Tuesday Blitz May 03 Late 2022"]
[White "Keller, Peter"]
[Black "Bas Mas, Jose Joaquin"]
[WhiteFideId "1272105"]
[BlackFideId "22219064"]
[WhiteElo "2275"]
[BlackElo "2212"]
[Result "0-1"]
[Round "06"]
[TimeControl "180+1"]
[Date "2022.05.03"]
[WhiteClock "0:00:22"]
[BlackClock "0:00:55"]

1. e4 {[%clk 0:02:57]}  c5 {[%clk 0:03:00]} 2. c3 {[%clk 0:02:57]}  d5 {[%clk 0:02:59]} 3. exd5 {[%clk 0:02:57]}  Qxd5 {[%clk 0:03:00]} 4. d4 {[%clk 0:02:57]}  e6 {[%clk 0:03:01]} 5. Nf3 {[%clk 0:02:47]}  Nf6 {[%clk 0:03:01]} 6. Na3 {[%clk 0:02:33]}  Nc6 {[%clk 0:03:00]} 7. Be3 {[%clk 0:02:30]}  a6 {[%clk 0:02:53]} 8. dxc5 {[%clk 0:01:45]}  Bd7 {[%clk 0:02:47]} 9. Nc4 {[%clk 0:01:32]}  Qxd1+ {[%clk 0:02:40]} 10. Rxd1 {[%clk 0:01:33]}  Be7 {[%clk 0:02:38]} 11. Nd6+ {[%clk 0:01:06]}  Bxd6 {[%clk 0:02:34]} 12. cxd6 {[%clk 0:01:07]}  O-O {[%clk 0:02:32]} 13. Be2 {[%clk 0:01:05]}  Nd5 {[%clk 0:02:32]} 14. c4 {[%clk 0:00:59]}  Nxe3 {[%clk 0:02:30]} 15. fxe3 {[%clk 0:01:00]}  b6 {[%clk 0:02:28]} 16. a3 {[%clk 0:00:57]}  a5 {[%clk 0:02:26]} 17. Kf2 {[%clk 0:00:47]}  f6 {[%clk 0:02:27]} 18. Rb1 {[%clk 0:00:45]}  e5 {[%clk 0:02:22]} 19. b4 {[%clk 0:00:41]}  axb4 {[%clk 0:02:22]} 20. axb4 {[%clk 0:00:41]}  Ra2 {[%clk 0:02:22]} 21. c5 {[%clk 0:00:36]}  bxc5 {[%clk 0:02:20]} 22. bxc5 {[%clk 0:00:36]}  e4 {[%clk 0:02:18]} 23. Nd4 {[%clk 0:00:32]}  Ne5 {[%clk 0:02:18]} 24. h3 {[%clk 0:00:28]}  f5 {[%clk 0:02:13]} 25. Kg3 {[%clk 0:00:20]}  Kh8 {[%clk 0:02:02]} 26. Rbg1 {[%clk 0:00:18]}  f4+ {[%clk 0:01:57]} 27. exf4 {[%clk 0:00:18]}  Ra3+ {[%clk 0:01:57]} 28. Kh2 {[%clk 0:00:18]}  Rxf4 {[%clk 0:01:56]} 29. Rf1 {[%clk 0:00:18]}  g5 {[%clk 0:01:52]} 30. Rxf4 {[%clk 0:00:17]}  gxf4 {[%clk 0:01:53]} 31. Rf1 {[%clk 0:00:17]}  Ra4 {[%clk 0:01:49]} 32. Nb5 {[%clk 0:00:09]}  f3 {[%clk 0:01:47]} 33. gxf3 {[%clk 0:00:09]}  Ra2 {[%clk 0:01:47]} 34. Nd4 {[%clk 0:00:06]}  exf3 {[%clk 0:01:44]} 35. Nxf3 {[%clk 0:00:07]}  Rxe2+ {[%clk 0:01:43]} 36. Kg3 {[%clk 0:00:07]}  Re3 {[%clk 0:01:38]} 37. Kf4 {[%clk 0:00:08]}  Rxf3+ {[%clk 0:01:26]} 38. Rxf3 {[%clk 0:00:08]}  Nxf3 {[%clk 0:01:27]} 39. Kxf3 {[%clk 0:00:09]}  Kg7 {[%clk 0:01:27]} 40. Ke4 {[%clk 0:00:07]}  Bc6+ {[%clk 0:01:26]} 41. Ke5 {[%clk 0:00:07]}  Kf7 {[%clk 0:01:26]} 42. h4 {[%clk 0:00:06]}  h5 {[%clk 0:01:21]} 43. Kf5 {[%clk 0:00:02]}  Ke8 {[%clk 0:01:19]} 44. Ke6 {[%clk 0:00:02]}  Kd8 {[%clk 0:01:17]} 45. Kf6 {[%clk 0:00:02]}  Kd7 {[%clk 0:01:16]} 46. Kg5 {[%clk 0:00:02]}  Bf3 {[%clk 0:01:16]} 47. Kf6 {[%clk 0:00:03]}  Bg4 {[%clk 0:01:14]} 48. Ke5 {[%clk 0:00:04]}  Kc6 {[%clk 0:01:13]} 49. Kd4 {[%clk 0:00:04]}  Bh3 {[%clk 0:01:11]} 50. Kc4 {[%clk 0:00:05]}  Be6+ {[%clk 0:01:10]} 51. Kd4 {[%clk 0:00:06]}  Bf7 {[%clk 0:01:10]} 52. Ke5 {[%clk 0:00:06]}  Bb3 {[%clk 0:00:56]} 53. Kf6 {[%clk 0:00:06]}  Bd1 {[%clk 0:00:52]} 54. Ke7 {[%clk 0:00:06]}  Bg4 {[%clk 0:00:52]} 55. Kd8 {[%clk 0:00:07]}  Kxc5 {[%clk 0:00:50]} 56. Ke7 {[%clk 0:00:08]}  Kc6 {[%clk 0:00:51]} 57. d7 {[%clk 0:00:08]}  Bxd7 {[%clk 0:00:50]} 58. Kf6 {[%clk 0:00:09]}  Bg4 {[%clk 0:00:51]} 59. Kg5 {[%clk 0:00:10]}  Kd5 {[%clk 0:00:51]} 60. Kf4 {[%clk 0:00:10]}  Kd4 {[%clk 0:00:52]} 61. Kg3 {[%clk 0:00:11]}  Ke5 {[%clk 0:00:52]} 62. Kh2 {[%clk 0:00:12]}  Kf4 {[%clk 0:00:53]} 63. Kg2 {[%clk 0:00:13]}  Bf3+ {[%clk 0:00:52]} 64. Kh2 {[%clk 0:00:14]}  Kg4 {[%clk 0:00:51]} 65. Kg1 {[%clk 0:00:14]}  Kxh4 {[%clk 0:00:51]} 66. Kh2 {[%clk 0:00:15]}  Kg4 {[%clk 0:00:52]} 67. Kg1 {[%clk 0:00:16]}  Be4 {[%clk 0:00:52]} 68. Kh2 {[%clk 0:00:17]}  h4 {[%clk 0:00:53]} 69. Kg1 {[%clk 0:00:17]}  h3 {[%clk 0:00:53]} 70. Kh2 {[%clk 0:00:18]}  Kh4 {[%clk 0:00:53]} 71. Kg1 {[%clk 0:00:19]}  Kg3 {[%clk 0:00:54]} 72. Kf1 {[%clk 0:00:20]}  h2 {[%clk 0:00:55]} 73. Ke2 {[%clk 0:00:21]}  h1=Q {[%clk 0:00:55]} 74. Ke3 {[%clk 0:00:22]}  Qf3+ {[%clk 0:00:55]} 0-1


[Site "https://www.chess.com"]

[Event "Titled Tuesday Blitz May 03 Late 2022"]
[White "Kholin, Aleksandr"]
[Black "Rosen, Eric"]
[WhiteFideId "14179385"]
[BlackFideId "2032562"]
[WhiteElo "2475"]
[BlackElo "2362"]
[Result "1/2-1/2"]
[Round "06"]
[TimeControl "180+1"]
[Date "2022.05.03"]
[WhiteClock "0:00:38"]
[BlackClock "0:00:03"]

1. d4 {[%clk 0:02:59]}  d5 {[%clk 0:02:57]} 2. c4 {[%clk 0:02:59]}  e6 {[%clk 0:02:57]} 3. Nc3 {[%clk 0:02:58]}  Nf6 {[%clk 0:02:57]} 4. cxd5 {[%clk 0:02:58]}  exd5 {[%clk 0:02:57]} 5. Bg5 {[%clk 0:02:58]}  c6 {[%clk 0:02:57]} 6. e3 {[%clk 0:02:58]}  Bf5 {[%clk 0:02:57]} 7. Qf3 {[%clk 0:02:58]}  Bg6 {[%clk 0:02:53]} 8. Bxf6 {[%clk 0:02:58]}  Qxf6 {[%clk 0:02:54]} 9. Qxf6 {[%clk 0:02:58]}  gxf6 {[%clk 0:02:54]} 10. Nge2 {[%clk 0:02:55]}  Nd7 {[%clk 0:02:53]} 11. Ng3 {[%clk 0:02:52]}  Nb6 {[%clk 0:02:49]} 12. Kd2 {[%clk 0:02:48]}  a5 {[%clk 0:02:49]} 13. Bd3 {[%clk 0:02:43]}  a4 {[%clk 0:02:40]} 14. h4 {[%clk 0:02:36]}  h5 {[%clk 0:02:08]} 15. Nf5 {[%clk 0:02:34]}  Nc4+ {[%clk 0:02:04]} 16. Kc2 {[%clk 0:02:24]}  Nd6 {[%clk 0:01:54]} 17. Nxd6+ {[%clk 0:02:22]}  Bxd6 {[%clk 0:01:55]} 18. g3 {[%clk 0:02:20]}  Kd7 {[%clk 0:01:51]} 19. a3 {[%clk 0:02:17]}  b5 {[%clk 0:01:50]} 20. Na2 {[%clk 0:02:15]}  c5 {[%clk 0:01:33]} 21. dxc5 {[%clk 0:02:10]}  Rhc8 {[%clk 0:01:32]} 22. Rac1 {[%clk 0:01:53]}  Rxc5+ {[%clk 0:01:28]} 23. Kd2 {[%clk 0:01:52]}  Rac8 {[%clk 0:01:25]} 24. Rxc5 {[%clk 0:01:39]}  Rxc5 {[%clk 0:01:25]} 25. Nc3 {[%clk 0:01:38]}  Kc6 {[%clk 0:00:57]} 26. Ne2 {[%clk 0:01:36]}  Kb6 {[%clk 0:00:50]} 27. Nd4 {[%clk 0:01:35]}  Be5 {[%clk 0:00:36]} 28. g4 {[%clk 0:01:21]}  hxg4 {[%clk 0:00:24]} 29. h5 {[%clk 0:01:21]}  Bxd3 {[%clk 0:00:25]} 30. Kxd3 {[%clk 0:01:21]}  Rc8 {[%clk 0:00:26]} 31. h6 {[%clk 0:01:20]}  Rh8 {[%clk 0:00:26]} 32. h7 {[%clk 0:01:17]}  Bxd4 {[%clk 0:00:10]} 33. Kxd4 {[%clk 0:01:16]}  Kc6 {[%clk 0:00:11]} 34. Rh6 {[%clk 0:01:15]}  Kd7 {[%clk 0:00:04]} 35. Kxd5 {[%clk 0:01:13]}  Ke7 {[%clk 0:00:04]} 36. Kc5 {[%clk 0:01:11]}  Kf8 {[%clk 0:00:04]} 37. Kxb5 {[%clk 0:01:10]}  Kg7 {[%clk 0:00:05]} 38. Rh4 {[%clk 0:01:10]}  f5 {[%clk 0:00:04]} 39. e4 {[%clk 0:01:03]}  Rb8+ {[%clk 0:00:03]} 40. Kxa4 {[%clk 0:01:03]}  Kh8 {[%clk 0:00:04]} 41. b4 {[%clk 0:01:02]}  fxe4 {[%clk 0:00:02]} 42. Rxg4 {[%clk 0:01:02]}  f5 {[%clk 0:00:02]} 43. Rg8+ {[%clk 0:00:59]}  Rxg8 {[%clk 0:00:02]} 44. hxg8=Q+ {[%clk 0:00:59]}  Kxg8 {[%clk 0:00:03]} 45. b5 {[%clk 0:00:58]}  f4 {[%clk 0:00:01]} 46. Kb3 {[%clk 0:00:58]}  e3 {[%clk 0:00:02]} 47. b6 {[%clk 0:00:54]}  exf2 {[%clk 0:00:02]} 48. b7 {[%clk 0:00:54]}  f1=Q {[%clk 0:00:02]} 49. b8=Q+ {[%clk 0:00:54]}  Kg7 {[%clk 0:00:03]} 50. Qc7+ {[%clk 0:00:53]}  Kf6 {[%clk 0:00:02]} 51. Qd6+ {[%clk 0:00:52]}  Kg5 {[%clk 0:00:03]} 52. Qe5+ {[%clk 0:00:52]}  Kg4 {[%clk 0:00:03]} 53. Qg7+ {[%clk 0:00:52]}  Kf3 {[%clk 0:00:04]} 54. Qc3+ {[%clk 0:00:52]}  Kg2 {[%clk 0:00:03]} 55. Qd2+ {[%clk 0:00:49]}  Kg3 {[%clk 0:00:03]} 56. Qc3+ {[%clk 0:00:48]}  f3 {[%clk 0:00:04]} 57. Qg7+ {[%clk 0:00:47]}  Kf2 {[%clk 0:00:04]} 58. Qd4+ {[%clk 0:00:47]}  Kg2 {[%clk 0:00:04]} 59. Qg4+ {[%clk 0:00:47]}  Kf2 {[%clk 0:00:05]} 60. Qd4+ {[%clk 0:00:46]}  Kg3 {[%clk 0:00:04]} 61. Qg7+ {[%clk 0:00:45]}  Kh2 {[%clk 0:00:05]} 62. Qh6+ {[%clk 0:00:45]}  Qh3 {[%clk 0:00:05]} 63. Qf4+ {[%clk 0:00:44]}  Kg2 {[%clk 0:00:05]} 64. Qe4 {[%clk 0:00:42]}  Kh2 {[%clk 0:00:04]} 65. Qf4+ {[%clk 0:00:42]}  Qg3 {[%clk 0:00:05]} 66. Qh6+ {[%clk 0:00:41]}  Kg2 {[%clk 0:00:05]} 67. Qc6 {[%clk 0:00:40]}  Kg1 {[%clk 0:00:05]} 68. Qc1+ {[%clk 0:00:39]}  Kh2 {[%clk 0:00:03]} 69. Qh6+ {[%clk 0:00:39]}  Qh3 {[%clk 0:00:03]} 70. Qf4+ {[%clk 0:00:38]} 1/2-1/2


[Site "https://www.chess.com"]

[Event "Titled Tuesday Blitz May 03 Late 2022"]
[White "Kohler, Aran"]
[Black "Toncheva, Nadya"]
[WhiteFideId "1002856"]
[BlackFideId "2924056"]
[WhiteElo "2331"]
[BlackElo "1884"]
[Result "1-0"]
[Round "06"]
[TimeControl "180+1"]
[Date "2022.05.03"]
[WhiteClock "0:00:34"]
[BlackClock "0:00:04"]

1. e4 {[%clk 0:03:00]}  d5 {[%clk 0:02:57]} 2. Nc3 {[%clk 0:02:58]}  dxe4 {[%clk 0:02:55]} 3. Nxe4 {[%clk 0:02:59]}  Nf6 {[%clk 0:02:56]} 4. Nxf6+ {[%clk 0:02:58]}  exf6 {[%clk 0:02:55]} 5. d4 {[%clk 0:02:57]}  Bd6 {[%clk 0:02:54]} 6. Be2 {[%clk 0:02:55]}  O-O {[%clk 0:02:54]} 7. Nf3 {[%clk 0:02:55]}  b6 {[%clk 0:02:54]} 8. O-O {[%clk 0:02:54]}  Bb7 {[%clk 0:02:53]} 9. c4 {[%clk 0:02:50]}  Re8 {[%clk 0:02:51]} 10. Be3 {[%clk 0:02:49]}  Nd7 {[%clk 0:02:49]} 11. Rc1 {[%clk 0:02:48]}  c5 {[%clk 0:02:38]} 12. d5 {[%clk 0:02:48]}  Nf8 {[%clk 0:02:35]} 13. Bd3 {[%clk 0:02:46]}  Ng6 {[%clk 0:02:34]} 14. Bxg6 {[%clk 0:02:41]}  hxg6 {[%clk 0:02:30]} 15. Qd2 {[%clk 0:02:41]}  g5 {[%clk 0:02:22]} 16. h3 {[%clk 0:02:24]}  Qd7 {[%clk 0:02:18]} 17. Nh2 {[%clk 0:02:05]}  Re7 {[%clk 0:02:10]} 18. Rfe1 {[%clk 0:01:53]}  Rae8 {[%clk 0:02:07]} 19. Nf1 {[%clk 0:01:47]}  g4 {[%clk 0:01:54]} 20. hxg4 {[%clk 0:01:41]}  Qxg4 {[%clk 0:01:53]} 21. f3 {[%clk 0:01:41]}  Qh5 {[%clk 0:01:46]} 22. Bf2 {[%clk 0:01:31]}  g6 {[%clk 0:01:12]} 23. Rxe7 {[%clk 0:01:30]}  Rxe7 {[%clk 0:01:12]} 24. Re1 {[%clk 0:01:30]}  Kf8 {[%clk 0:01:07]} 25. Rxe7 {[%clk 0:01:29]}  Kxe7 {[%clk 0:01:08]} 26. Bg3 {[%clk 0:01:24]}  Bxg3 {[%clk 0:01:00]} 27. Nxg3 {[%clk 0:01:24]}  Qe5 {[%clk 0:01:01]} 28. Ne4 {[%clk 0:01:10]}  Bc8 {[%clk 0:00:54]} 29. d6+ {[%clk 0:01:08]}  Kd7 {[%clk 0:00:41]} 30. Qc2 {[%clk 0:00:58]}  f5 {[%clk 0:00:38]} 31. Qa4+ {[%clk 0:00:58]}  Kd8 {[%clk 0:00:15]} 32. Qxa7 {[%clk 0:00:58]}  Qd4+ {[%clk 0:00:14]} 33. Nf2 {[%clk 0:00:56]}  Qxd6 {[%clk 0:00:14]} 34. Qxf7 {[%clk 0:00:56]}  Qe6 {[%clk 0:00:13]} 35. Qxe6 {[%clk 0:00:55]}  Bxe6 {[%clk 0:00:14]} 36. b3 {[%clk 0:00:55]}  Kc7 {[%clk 0:00:13]} 37. Nd3 {[%clk 0:00:55]}  Kd6 {[%clk 0:00:12]} 38. g3 {[%clk 0:00:54]}  g5 {[%clk 0:00:11]} 39. Kf2 {[%clk 0:00:54]}  Bd7 {[%clk 0:00:12]} 40. Ke3 {[%clk 0:00:54]}  b5 {[%clk 0:00:13]} 41. f4 {[%clk 0:00:51]}  gxf4+ {[%clk 0:00:11]} 42. Kxf4 {[%clk 0:00:45]}  bxc4 {[%clk 0:00:12]} 43. bxc4 {[%clk 0:00:45]}  Be6 {[%clk 0:00:12]} 44. Ne5 {[%clk 0:00:45]}  Kc7 {[%clk 0:00:10]} 45. a3 {[%clk 0:00:43]}  Kd6 {[%clk 0:00:10]} 46. a4 {[%clk 0:00:40]}  Kc7 {[%clk 0:00:10]} 47. a5 {[%clk 0:00:41]}  Kb7 {[%clk 0:00:10]} 48. Nd3 {[%clk 0:00:38]}  Bxc4 {[%clk 0:00:04]} 49. Nxc5+ {[%clk 0:00:38]}  Kc6 {[%clk 0:00:05]} 50. Na4 {[%clk 0:00:34]}  Kb5 {[%clk 0:00:04]} 51. Nc3+ {[%clk 0:00:34]} 1-0


[Site "https://www.chess.com"]

[Event "Titled Tuesday Blitz May 03 Late 2022"]
[White "Lashkin, Jegor"]
[Black "Martinez Reyes, Pedro Ramon"]
[WhiteFideId "13907808"]
[BlackFideId "3901807"]
[WhiteElo "2368"]
[BlackElo "2410"]
[Result "1-0"]
[Round "06"]
[TimeControl "180+1"]
[Date "2022.05.03"]
[WhiteClock "0:01:37"]
[BlackClock "0:00:56"]

1. Nf3 {[%clk 0:02:22]}  d5 {[%clk 0:02:59]} 2. b3 {[%clk 0:02:21]}  Nf6 {[%clk 0:03:00]} 3. Bb2 {[%clk 0:02:21]}  e6 {[%clk 0:03:01]} 4. g3 {[%clk 0:02:22]}  Be7 {[%clk 0:03:02]} 5. Bg2 {[%clk 0:02:23]}  O-O {[%clk 0:03:02]} 6. O-O {[%clk 0:02:23]}  c5 {[%clk 0:03:03]} 7. d4 {[%clk 0:02:24]}  cxd4 {[%clk 0:03:03]} 8. Nxd4 {[%clk 0:02:25]}  Nc6 {[%clk 0:03:04]} 9. c4 {[%clk 0:02:22]}  dxc4 {[%clk 0:02:56]} 10. Bxc6 {[%clk 0:02:18]}  bxc6 {[%clk 0:02:57]} 11. Nxc6 {[%clk 0:02:19]}  Qe8 {[%clk 0:02:54]} 12. Nxe7+ {[%clk 0:02:19]}  Qxe7 {[%clk 0:02:55]} 13. Ba3 {[%clk 0:02:20]}  Qb7 {[%clk 0:02:52]} 14. Bxf8 {[%clk 0:02:19]}  Kxf8 {[%clk 0:02:47]} 15. Qd6+ {[%clk 0:02:18]}  Ke8 {[%clk 0:02:45]} 16. Nd2 {[%clk 0:02:15]}  c3 {[%clk 0:02:35]} 17. Nc4 {[%clk 0:02:15]}  Qd5 {[%clk 0:02:30]} 18. Qb4 {[%clk 0:02:14]}  a5 {[%clk 0:02:26]} 19. Qb5+ {[%clk 0:02:05]}  Qxb5 {[%clk 0:02:22]} 20. Nd6+ {[%clk 0:02:05]}  Ke7 {[%clk 0:02:23]} 21. Nxb5 {[%clk 0:02:06]}  Nd5 {[%clk 0:02:21]} 22. Rfc1 {[%clk 0:02:03]}  Ba6 {[%clk 0:02:15]} 23. Nxc3 {[%clk 0:02:01]}  Nb6 {[%clk 0:02:12]} 24. Rc2 {[%clk 0:01:59]}  f5 {[%clk 0:02:08]} 25. Rac1 {[%clk 0:01:59]}  Kf6 {[%clk 0:02:06]} 26. f4 {[%clk 0:01:58]}  g5 {[%clk 0:02:04]} 27. e3 {[%clk 0:01:59]}  gxf4 {[%clk 0:01:59]} 28. exf4 {[%clk 0:01:59]}  h5 {[%clk 0:01:59]} 29. Rd2 {[%clk 0:01:59]}  Ke7 {[%clk 0:01:55]} 30. Ne2 {[%clk 0:01:53]}  Nd5 {[%clk 0:01:55]} 31. Nd4 {[%clk 0:01:53]}  Kf7 {[%clk 0:01:33]} 32. Nxf5 {[%clk 0:01:51]}  Kf6 {[%clk 0:01:30]} 33. Nd4 {[%clk 0:01:50]}  h4 {[%clk 0:01:27]} 34. Re1 {[%clk 0:01:50]}  Bc8 {[%clk 0:01:27]} 35. Rde2 {[%clk 0:01:48]}  Nc7 {[%clk 0:01:26]} 36. g4 {[%clk 0:01:46]}  a4 {[%clk 0:01:25]} 37. g5+ {[%clk 0:01:46]}  Kg6 {[%clk 0:01:26]} 38. b4 {[%clk 0:01:45]}  a3 {[%clk 0:01:26]} 39. Nc6 {[%clk 0:01:43]}  Kf5 {[%clk 0:01:22]} 40. Ne7+ {[%clk 0:01:42]}  Kxf4 {[%clk 0:01:21]} 41. Nxc8 {[%clk 0:01:42]}  Rxc8 {[%clk 0:01:22]} 42. Rc2 {[%clk 0:01:42]}  h3 {[%clk 0:01:12]} 43. Rec1 {[%clk 0:01:42]}  Rg8 {[%clk 0:01:12]} 44. Rxc7 {[%clk 0:01:40]}  Rxg5+ {[%clk 0:01:13]} 45. Kf1 {[%clk 0:01:40]}  e5 {[%clk 0:01:12]} 46. R7c2 {[%clk 0:01:39]}  e4 {[%clk 0:01:12]} 47. Rf2+ {[%clk 0:01:39]}  Ke3 {[%clk 0:01:11]} 48. Re1+ {[%clk 0:01:40]}  Kd3 {[%clk 0:01:11]} 49. Rd1+ {[%clk 0:01:39]}  Ke3 {[%clk 0:01:08]} 50. Rb1 {[%clk 0:01:38]}  Rd5 {[%clk 0:01:01]} 51. Rb3+ {[%clk 0:01:38]}  Rd3 {[%clk 0:00:54]} 52. Rxd3+ {[%clk 0:01:37]}  exd3 {[%clk 0:00:55]} 53. Ke1 {[%clk 0:01:37]}  d2+ {[%clk 0:00:56]} 54. Rxd2 {[%clk 0:01:37]} 1-0


[Site "https://www.chess.com"]

[Event "Titled Tuesday Blitz May 03 Late 2022"]
[White "Licznerski, Lukasz"]
[Black "Skliarov, Viktor"]
[WhiteFideId "1179250"]
[BlackFideId "14106736"]
[WhiteElo "2422"]
[BlackElo "2229"]
[Result "1-0"]
[Round "06"]
[TimeControl "180+1"]
[Date "2022.05.03"]
[WhiteClock "0:00:33"]
[BlackClock "0:00:03"]

1. e4 {[%clk 0:03:00]}  c5 {[%clk 0:02:59]} 2. Nf3 {[%clk 0:03:01]}  Nc6 {[%clk 0:03:00]} 3. d4 {[%clk 0:03:01]}  cxd4 {[%clk 0:03:01]} 4. Nxd4 {[%clk 0:03:02]}  Nf6 {[%clk 0:03:01]} 5. Nc3 {[%clk 0:03:02]}  e5 {[%clk 0:03:02]} 6. Ndb5 {[%clk 0:03:03]}  d6 {[%clk 0:03:02]} 7. Bg5 {[%clk 0:03:03]}  a6 {[%clk 0:03:03]} 8. Na3 {[%clk 0:03:03]}  b5 {[%clk 0:03:04]} 9. Nd5 {[%clk 0:03:04]}  Be7 {[%clk 0:03:04]} 10. Bxf6 {[%clk 0:03:04]}  Bxf6 {[%clk 0:03:05]} 11. c3 {[%clk 0:03:05]}  Bg5 {[%clk 0:03:05]} 12. Nc2 {[%clk 0:03:05]}  O-O {[%clk 0:03:06]} 13. a4 {[%clk 0:03:06]}  bxa4 {[%clk 0:03:06]} 14. Rxa4 {[%clk 0:03:06]}  a5 {[%clk 0:03:07]} 15. Bc4 {[%clk 0:03:06]}  Rb8 {[%clk 0:03:08]} 16. b3 {[%clk 0:03:06]}  Kh8 {[%clk 0:03:06]} 17. O-O {[%clk 0:03:06]}  f5 {[%clk 0:03:03]} 18. exf5 {[%clk 0:03:07]}  Bxf5 {[%clk 0:03:03]} 19. Nce3 {[%clk 0:03:07]}  Bg6 {[%clk 0:02:56]} 20. Be2 {[%clk 0:02:42]}  Ne7 {[%clk 0:02:44]} 21. Nc4 {[%clk 0:01:55]}  Nxd5 {[%clk 0:02:10]} 22. Qxd5 {[%clk 0:01:56]}  Bf7 {[%clk 0:02:11]} 23. Qxd6 {[%clk 0:01:54]}  Bxc4 {[%clk 0:01:37]} 24. Qxd8 {[%clk 0:01:52]}  Rfxd8 {[%clk 0:01:38]} 25. Bxc4 {[%clk 0:01:50]}  Bd2 {[%clk 0:01:38]} 26. Rxa5 {[%clk 0:01:42]}  Bxc3 {[%clk 0:01:37]} 27. Ra2 {[%clk 0:01:39]}  Bd4 {[%clk 0:01:23]} 28. h4 {[%clk 0:01:12]}  g6 {[%clk 0:01:14]} 29. g3 {[%clk 0:01:08]}  Kg7 {[%clk 0:01:10]} 30. Kg2 {[%clk 0:01:09]}  Rf8 {[%clk 0:01:10]} 31. Rd2 {[%clk 0:01:02]}  Rf6 {[%clk 0:00:34]} 32. Re1 {[%clk 0:01:01]}  Rbf8 {[%clk 0:00:30]} 33. f4 {[%clk 0:00:50]}  Bc3 {[%clk 0:00:18]} 34. Rd7+ {[%clk 0:00:50]}  Kh6 {[%clk 0:00:19]} 35. Re3 {[%clk 0:00:50]}  Bd4 {[%clk 0:00:10]} 36. Re4 {[%clk 0:00:44]}  Bc3 {[%clk 0:00:10]} 37. fxe5 {[%clk 0:00:39]}  Rf2+ {[%clk 0:00:10]} 38. Kh3 {[%clk 0:00:39]}  Rb2 {[%clk 0:00:05]} 39. e6 {[%clk 0:00:35]}  Bb4 {[%clk 0:00:03]} 40. e7 {[%clk 0:00:33]}  Re8 {[%clk 0:00:03]} 41. Bf7 {[%clk 0:00:33]}  Rxe7 {[%clk 0:00:04]} 42. Rdxe7 {[%clk 0:00:33]}  Bxe7 {[%clk 0:00:04]} 43. Rxe7 {[%clk 0:00:33]}  Kg7 {[%clk 0:00:04]} 44. Bc4+ {[%clk 0:00:33]}  Kh6 {[%clk 0:00:03]} 45. Bg8 {[%clk 0:00:32]}  g5 {[%clk 0:00:02]} 46. Rxh7+ {[%clk 0:00:32]}  Kg6 {[%clk 0:00:03]} 47. h5+ {[%clk 0:00:32]}  Kf6 {[%clk 0:00:03]} 48. Rf7+ {[%clk 0:00:33]}  Ke5 {[%clk 0:00:03]} 49. h6 {[%clk 0:00:33]} 1-0


[Site "https://www.chess.com"]

[Event "Titled Tuesday Blitz May 03 Late 2022"]
[White "Martinez Alcantara, Jose Eduardo"]
[Black "Fedoseev, Vladimir"]
[WhiteFideId "3805662"]
[BlackFideId "24130737"]
[WhiteElo "2690"]
[BlackElo "2726"]
[Result "1-0"]
[Round "06"]
[TimeControl "180+1"]
[Date "2022.05.03"]
[WhiteClock "0:00:29"]
[BlackClock "0:00:01"]

1. e4 {[%clk 0:03:00]}  c6 {[%clk 0:03:00]} 2. d4 {[%clk 0:03:00]}  d5 {[%clk 0:03:00]} 3. e5 {[%clk 0:03:01]}  Bf5 {[%clk 0:02:59]} 4. g4 {[%clk 0:02:55]}  Bd7 {[%clk 0:02:57]} 5. Nc3 {[%clk 0:02:54]}  e6 {[%clk 0:02:55]} 6. Be3 {[%clk 0:02:51]}  c5 {[%clk 0:02:49]} 7. Nge2 {[%clk 0:02:41]}  Qb6 {[%clk 0:02:38]} 8. Qd2 {[%clk 0:02:38]}  Nc6 {[%clk 0:02:09]} 9. Na4 {[%clk 0:02:31]}  Qc7 {[%clk 0:02:08]} 10. Nxc5 {[%clk 0:02:14]}  Nxe5 {[%clk 0:02:07]} 11. dxe5 {[%clk 0:02:11]}  Bxc5 {[%clk 0:02:07]} 12. O-O-O {[%clk 0:02:03]}  b6 {[%clk 0:01:55]} 13. f4 {[%clk 0:02:01]}  h5 {[%clk 0:01:51]} 14. gxh5 {[%clk 0:02:00]}  Ne7 {[%clk 0:01:47]} 15. Nd4 {[%clk 0:01:50]}  Rxh5 {[%clk 0:01:45]} 16. Kb1 {[%clk 0:01:47]}  Rc8 {[%clk 0:01:42]} 17. Ba6 {[%clk 0:01:47]}  Rd8 {[%clk 0:01:39]} 18. Be2 {[%clk 0:01:47]}  Rh3 {[%clk 0:01:37]} 19. Bg4 {[%clk 0:01:39]}  Rh4 {[%clk 0:01:33]} 20. h3 {[%clk 0:01:39]}  Rc8 {[%clk 0:01:25]} 21. Rhg1 {[%clk 0:01:34]}  g5 {[%clk 0:01:19]} 22. fxg5 {[%clk 0:01:30]}  Qxe5 {[%clk 0:01:12]} 23. Qf2 {[%clk 0:01:22]}  Ng6 {[%clk 0:01:05]} 24. Rge1 {[%clk 0:01:14]}  Qc7 {[%clk 0:00:49]} 25. Nf5 {[%clk 0:01:14]}  Rh7 {[%clk 0:00:33]} 26. Nh6 {[%clk 0:01:00]}  Bxe3 {[%clk 0:00:32]} 27. Rxe3 {[%clk 0:01:01]}  Qf4 {[%clk 0:00:30]} 28. Rf3 {[%clk 0:00:51]}  Qxg5 {[%clk 0:00:30]} 29. Nxf7 {[%clk 0:00:51]}  Qe7 {[%clk 0:00:31]} 30. Rf1 {[%clk 0:00:47]}  Rc4 {[%clk 0:00:14]} 31. Ne5 {[%clk 0:00:42]}  Rxg4 {[%clk 0:00:06]} 32. hxg4 {[%clk 0:00:40]}  Qg7 {[%clk 0:00:06]} 33. Nxg6 {[%clk 0:00:34]}  Qxg6 {[%clk 0:00:06]} 34. Qg3 {[%clk 0:00:34]}  Ke7 {[%clk 0:00:06]} 35. Rf8 {[%clk 0:00:29]}  Qg5 {[%clk 0:00:01]} 36. Qa3# {[%clk 0:00:29]} 1-0


[Site "https://www.chess.com"]